[Event "Kragero Resort International 2022"]
[Site "Kragero"]
[Date "2022.02.25"]
[Round "6.1"]
[White "Haugen, Lars Tormod"]
[Black "Engeset, Audun"]
[Result "0-1"]
[ECO "D32"]
[WhiteElo "1710"]
[BlackElo "1823"]
[Annotator "NA"]
[PlyCount "58"]
[EventDate "2022.02.23"]
[EventType "swiss"]
[EventCountry "NOR"]
[SourceTitle "playchess.com"]
[Source "ChessBase"]
[SourceQuality "1"]
[TimeControl "5400+30"]

1. c4 {[%emt 0:00:08]} e6 {[%emt 0:00:26]} 2. Nf3 {[%emt 0:06:43]} Nf6 {[%emt 0:01:37]} 3. Nc3 {[%emt 0:04:13]} d5 {[%emt 0:00:15]} 4. e3 {[%emt 0:00:14]} c5 {[%emt 0:01:49]} 5. d4 {[%emt 0:02:16]} Nc6 {[%emt 0:01:51]} 6. cxd5 {[%emt 0:08:08]} exd5 {[%emt 0:00:59]} 7. Be2 {[%emt 0:03:09]} Be7 {[%emt 0:02:44]} 8. O-O {[%emt 0:00:38]} O-O {[%emt 0:01:28]} 9. dxc5 {[%emt 0:05:09]} Bxc5 {[%emt 0:00:26]} 10. Nb5 {[%emt 0:06:09]} Bf5 {[%emt 0:05:28]} 11. a3 {[%emt 0:07:02]} Rc8 {[%emt 0:08:57]} 12. b4 {[%emt 0:03:20]} Bb6 {[%emt 0:01:25]} 13. Bb2 {[%emt 0:03:19]} Ne4 {[%emt 0:02:23]} 14. Rc1 {[%emt 0:02:27]} Re8 {[%emt 0:00:56]} 15. Nbd4 {[%emt 0:02:27]} Be6 {[%emt 0:07:00]} 16. Nxc6 {[%emt 0:07:21]} bxc6 {[%emt 0:00:35]} 17. Ba6 {[%emt 0:00:50]} Rc7 {[%emt 0:05:58]} 18. a4 {[%emt 0:10:22]} Bc8 {[%emt 0:05:04]} 19. Qe2 {[%emt 0:01:32]} Nxf2 {[%emt 0:09:01]} 20. Bd4 {[%emt 0:18:29]} Ng4 {[%emt 0:04:10]} 21. Bxc8 {[%emt 0:01:49]} Rxc8 {[%emt 0:00:46]} 22. a5 {[%emt 0:02:02]} Bxd4 {[%emt 0:00:51]} 23. Nxd4 {[%emt 0:00:04]} Qh4 {[%emt 0:02:24]} 24. g3 {[%emt 0:01:07]} Qg5 {[%emt 0:01:48]} 25. Nxc6 {[%emt 0:01:20]} Nxe3 {[%emt 0:01:48]} 26. Rfe1 {[%emt 0:01:28]} Kf8 {[%emt 0:07:56]} 27. Nxa7 {[%emt 0:01:10]} Rxc1 {[%emt 0:00:48]} 28. Rxc1 {[%emt 0:00:01]} Nc4 {[%emt 0:00:20]} 29. Qf1 {[%emt 0:01:14]} Qe3+ {[%emt 0:00:16]} 0-1

[Event "Kragero Resort International 2022"]
[Site "Kragero"]
[Date "2022.02.25"]
[Round "6.2"]
[White "Haug, Havard"]
[Black "Ostensen, Nicolai Maxime"]
[Result "1/2-1/2"]
[ECO "B00"]
[WhiteElo "1801"]
[BlackElo "1728"]
[Annotator "NA"]
[PlyCount "66"]
[EventDate "2022.02.23"]
[EventType "swiss"]
[EventCountry "NOR"]
[SourceTitle "playchess.com"]
[Source "ChessBase"]
[SourceQuality "1"]
[TimeControl "5400+30"]

1. e4 {[%emt 0:00:02]} b6 {[%emt 0:01:00]} 2. d4 {[%emt 0:01:03]} Bb7 {[%emt 0:00:09]} 3. Nc3 {[%emt 0:00:42]} e6 {[%emt 0:00:10]} 4. Bd3 {[%emt 0:01:14]} Bb4 {[%emt 0:00:44]} 5. Nf3 {[%emt 0:02:51]} c5 {[%emt 0:02:41]} 6. dxc5 {[%emt 0:05:31]} bxc5 {[%emt 0:00:22]} 7. Bd2 {[%emt 0:04:37]} Ne7 {[%emt 0:01:26]} 8. O-O {[%emt 0:02:06]} O-O {[%emt 0:02:34]} 9. Re1 {[%emt 0:06:00]} Ng6 {[%emt 0:01:10]} 10. Nb1 {[%emt 0:03:27]} d5 {[%emt 0:02:31]} 11. Bxb4 {[%emt 0:03:20]} cxb4 {[%emt 0:00:07]} 12. Nbd2 {[%emt 0:02:55]} Nd7 {[%emt 0:02:13]} 13. exd5 {[%emt 0:01:03]} Bxd5 {[%emt 0:00:11]} 14. Be4 {[%emt 0:00:51]} Nf6 {[%emt 0:01:03]} 15. Bxd5 {[%emt 0:03:02]} Nxd5 {[%emt 0:00:36]} 16. Nc4 {[%emt 0:01:46]} Qc7 {[%emt 0:01:36]} 17. Ne3 {[%emt 0:03:21]} Rfd8 {[%emt 0:03:51]} 18. Nxd5 {[%emt 0:04:57]} Rxd5 {[%emt 0:00:07]} 19. Qe2 {[%emt 0:01:22]} Rc8 {[%emt 0:02:12]} 20. a3 {[%emt 0:09:06]} Qxc2 {[%emt 0:06:00]} 21. axb4 {[%emt 0:01:06]} Qxe2 {[%emt 0:05:29]} 22. Rxe2 {[%emt 0:00:43]} Rd7 {[%emt 0:01:56]} 23. b3 {[%emt 0:04:50]} Rb7 {[%emt 0:01:25]} 24. h3 {[%emt 0:07:03]} h6 {[%emt 0:01:55]} 25. Re4 {[%emt 0:04:59]} Ne7 {[%emt 0:00:48]} 26. Rc4 {[%emt 0:01:41]} Rcb8 {[%emt 0:02:58]} 27. b5 {[%emt 0:02:54]} Nd5 {[%emt 0:00:47]} 28. Nd4 {[%emt 0:01:54]} g6 {[%emt 0:05:10]} 29. Rca4 {[%emt 0:01:26]} Ra8 {[%emt 0:01:56]} 30. Ra5 {[%emt 0:01:38]} Nc7 {[%emt 0:01:11]} 31. b6 {[%emt 0:03:36]} Rxb6 {[%emt 0:00:09]} 32. Rxa7 {[%emt 0:00:10]} Rxa7 {[%emt 0:00:12]} 33. Rxa7 {[%emt 0:00:07]} Nd5 {[%emt 0:00:20]} 1/2-1/2

[Event "Kragero Resort International 2022"]
[Site "Kragero"]
[Date "2022.02.25"]
[Round "6.3"]
[White "Omarsson, Adam"]
[Black "Jonsson, Kristjan Dagur"]
[Result "0-1"]
[ECO "D37"]
[WhiteElo "1546"]
[BlackElo "1797"]
[Annotator "NA"]
[PlyCount "86"]
[EventDate "2022.02.23"]
[EventType "swiss"]
[EventCountry "NOR"]
[SourceTitle "playchess.com"]
[Source "ChessBase"]
[SourceQuality "1"]
[TimeControl "5400+30"]

1. d4 {[%emt 0:00:02]} d5 {[%emt 0:00:19]} 2. c4 {[%emt 0:00:28]} e6 {[%emt 0:00:12]} 3. Nc3 {[%emt 0:00:23]} Be7 {[%emt 0:00:48]} 4. Nf3 {[%emt 0:00:45]} Nf6 {[%emt 0:00:23]} 5. Bf4 {[%emt 0:01:19]} O-O {[%emt 0:01:24]} 6. e3 {[%emt 0:01:10]} c6 {[%emt 0:03:01]} 7. h3 {[%emt 0:02:17]} b6 {[%emt 0:05:09]} 8. cxd5 {[%emt 0:01:57]} Nxd5 {[%emt 0:03:49]} 9. Bxb8 {[%emt 0:02:57]} Rxb8 {[%emt 0:00:16]} 10. Bd3 {[%emt 0:01:03]} Bb7 {[%emt 0:02:34]} 11. O-O {[%emt 0:01:56]} c5 {[%emt 0:04:29]} 12. Nxd5 {[%emt 0:06:36]} Bxd5 {[%emt 0:02:45]} 13. Ne5 {[%emt 0:01:40]} h6 {[%emt 0:04:19]} 14. Bb5 {[%emt 0:01:44]} Rc8 {[%emt 0:10:52]} 15. Qd3 {[%emt 0:02:28]} Bd6 {[%emt 0:04:56]} 16. Nc4 {[%emt 0:11:56]} Bb8 {[%emt 0:04:42]} 17. Ba6 {[%emt 0:01:21]} Qc7 {[%emt 0:02:11]} 18. Ne5 {[%emt 0:01:29]} f6 {[%emt 0:07:54]} 19. Bxc8 {[%emt 0:01:43]} fxe5 {[%emt 0:03:25]} 20. dxe5 {[%emt 0:00:52]} Rxc8 {[%emt 0:02:49]} 21. f4 {[%emt 0:00:41]} Qb7 {[%emt 0:01:13]} 22. Qg6 {[%emt 0:00:58]} Qf7 {[%emt 0:02:20]} 23. Qg4 {[%emt 0:00:54]} Rf8 {[%emt 0:01:17]} 24. Qh4 {[%emt 0:02:14]} Qg6 {[%emt 0:01:45]} 25. Rf2 {[%emt 0:00:57]} Bc7 {[%emt 0:02:58]} 26. Qg4 {[%emt 0:02:19]} Qe4 {[%emt 0:01:19]} 27. Rf3 {[%emt 0:02:22]} Qh7 {[%emt 0:06:58]} 28. Rg3 {[%emt 0:01:05]} b5 {[%emt 0:01:31]} 29. e4 {[%emt 0:00:43]} h5 {[%emt 0:02:32]} 30. Qe2 {[%emt 0:03:39]} Bxe4 {[%emt 0:02:31]} 31. Qxb5 {[%emt 0:00:29]} h4 {[%emt 0:01:57]} 32. Re3 {[%emt 0:00:56]} Bb6 {[%emt 0:00:30]} 33. Kh1 {[%emt 0:00:54]} c4 {[%emt 0:00:51]} 34. Re2 {[%emt 0:01:25]} Qf5 {[%emt 0:00:18]} 35. Rxe4 {[%emt 0:00:44]} Qxe4 {[%emt 0:00:11]} 36. Rf1 {[%emt 0:00:16]} Qe2 {[%emt 0:01:10]} 37. Rb1 {[%emt 0:00:35]} Rxf4 {[%emt 0:01:19]} 38. Qe8+ {[%emt 0:00:49]} Kh7 {[%emt 0:00:09]} 39. Kh2 {[%emt 0:00:56]} Bf2 {[%emt 0:00:29]} 40. Kh1 {[%emt 0:00:55]} Bg3 {[%emt 0:00:11]} 41. Rg1 {[%emt 0:00:13]} Rf1 {[%emt 0:00:52]} 42. Qh5+ {[%emt 0:00:11]} Qxh5 {[%emt 0:00:07]} 43. Rxf1 {[%emt 0:00:05]} Bxe5 {[%emt 0:00:52]} 0-1

[Event "Kragero Resort International 2022"]
[Site "Kragero"]
[Date "2022.02.25"]
[Round "6.4"]
[White "Hammari, Vinjar"]
[Black "Gilmessen, Subhan"]
[Result "1-0"]
[ECO "E01"]
[WhiteElo "1775"]
[BlackElo "1381"]
[Annotator "NA"]
[PlyCount "127"]
[EventDate "2022.02.23"]
[EventType "swiss"]
[EventCountry "NOR"]
[SourceTitle "playchess.com"]
[Source "ChessBase"]
[SourceQuality "1"]
[TimeControl "5400+30"]

1. d4 {[%emt 0:00:06]} d5 {[%emt 0:00:04]} 2. c4 {[%emt 0:00:05]} c6 {[%emt 0:00:04]} 3. Nf3 {[%emt 0:00:05]} e6 {[%emt 0:00:13]} 4. g3 {[%emt 0:00:04]} Nf6 {[%emt 0:00:33]} 5. Bg2 {[%emt 0:00:08]} Nbd7 {[%emt 0:01:01]} 6. Qc2 {[%emt 0:00:11]} Bd6 {[%emt 0:00:40]} 7. O-O {[%emt 0:00:09]} O-O {[%emt 0:00:05]} 8. Rd1 {[%emt 0:00:10]} b6 {[%emt 0:00:44]} 9. Nbd2 {[%emt 0:00:07]} Qc7 {[%emt 0:01:39]} 10. e4 {[%emt 0:00:20]} dxe4 {[%emt 0:00:07]} 11. Nxe4 {[%emt 0:00:05]} Nxe4 {[%emt 0:00:35]} 12. Qxe4 {[%emt 0:00:07]} Nf6 {[%emt 0:00:16]} 13. Qc2 {[%emt 0:00:04]} h6 {[%emt 0:01:06]} 14. c5 {[%emt 0:00:12]} bxc5 {[%emt 0:01:06]} 15. dxc5 {[%emt 0:00:06]} Be7 {[%emt 0:00:05]} 16. Bf4 {[%emt 0:00:14]} Qa5 {[%emt 0:00:27]} 17. Ne5 {[%emt 0:03:58]} Nd5 {[%emt 0:04:27]} 18. Nxc6 {[%emt 0:00:49]} Qxc5 {[%emt 0:00:18]} 19. Qxc5 {[%emt 0:01:25]} Bxc5 {[%emt 0:00:10]} 20. b4 {[%emt 0:00:52]} Bb6 {[%emt 0:01:09]} 21. Ne7+ {[%emt 0:01:42]} Nxe7 {[%emt 0:00:42]} 22. Bxa8 {[%emt 0:00:06]} Ba6 {[%emt 0:00:08]} 23. Bf3 {[%emt 0:01:02]} Ng6 {[%emt 0:00:16]} 24. Be3 {[%emt 0:00:42]} Bxe3 {[%emt 0:00:45]} 25. fxe3 {[%emt 0:00:05]} Ne5 {[%emt 0:00:12]} 26. Kf2 {[%emt 0:00:20]} Nd3+ {[%emt 0:00:46]} 27. Kg2 {[%emt 0:00:08]} Nxb4 {[%emt 0:00:30]} 28. Rac1 {[%emt 0:01:13]} Nxa2 {[%emt 0:01:00]} 29. Rc7 {[%emt 0:00:15]} Nb4 {[%emt 0:02:31]} 30. Rxa7 {[%emt 0:00:12]} Nc2 {[%emt 0:00:44]} 31. Kf2 {[%emt 0:01:05]} Nb4 {[%emt 0:04:08]} 32. Rb1 {[%emt 0:00:56]} Nd3+ {[%emt 0:01:19]} 33. Kg2 {[%emt 0:00:06]} Bc4 {[%emt 0:00:33]} 34. Ra8 {[%emt 0:00:46]} Ne5 {[%emt 0:01:56]} 35. Rxf8+ {[%emt 0:00:23]} Kxf8 {[%emt 0:00:08]} 36. g4 {[%emt 0:04:40]} f5 {[%emt 0:04:10]} 37. Kg3 {[%emt 0:01:59]} Kf7 {[%emt 0:02:04]} 38. Rc1 {[%emt 0:00:22]} Kf6 {[%emt 0:03:03]} 39. Rb1 {[%emt 0:04:42]} Bd3 {[%emt 0:08:03]} 40. Rb6 {[%emt 0:00:52]} Nxf3 {[%emt 0:03:39]} 41. Kxf3 {[%emt 0:00:08]} fxg4+ {[%emt 0:00:26]} 42. Kxg4 {[%emt 0:00:07]} Bf5+ {[%emt 0:00:14]} 43. Kf4 {[%emt 0:01:13]} g5+ {[%emt 0:00:18]} 44. Kf3 {[%emt 0:00:05]} h5 {[%emt 0:01:55]} 45. e4 {[%emt 0:00:48]} Bg6 {[%emt 0:00:41]} 46. Rb5 {[%emt 0:00:52]} Bh7 {[%emt 0:01:04]} 47. h4 {[%emt 0:00:16]} gxh4 {[%emt 0:04:09]} 48. Rxh5 {[%emt 0:01:19]} Bg6 {[%emt 0:00:14]} 49. Rxh4 {[%emt 0:00:16]} e5 {[%emt 0:01:53]} 50. Rh6 {[%emt 0:00:16]} Kg7 {[%emt 0:00:20]} 51. Rh1 {[%emt 0:01:53]} Kf6 {[%emt 0:00:17]} 52. Ra1 {[%emt 0:00:08]} Bh5+ {[%emt 0:00:28]} 53. Ke3 {[%emt 0:00:13]} Bg6 {[%emt 0:00:19]} 54. Kd3 {[%emt 0:00:06]} Bf7 {[%emt 0:00:33]} 55. Rf1+ {[%emt 0:00:54]} Ke6 {[%emt 0:00:38]} 56. Kc4 {[%emt 0:01:28]} Ke7+ {[%emt 0:00:25]} 57. Kc5 {[%emt 0:00:32]} Ke6 {[%emt 0:00:10]} 58. Ra1 {[%emt 0:00:57]} Ke7 {[%emt 0:01:28]} 59. Rd1 {[%emt 0:00:47]} Be6 {[%emt 0:00:20]} 60. Kc6 {[%emt 0:00:17]} Bb3 {[%emt 0:00:43]} 61. Rb1 {[%emt 0:00:31]} Bc2 {[%emt 0:01:30]} 62. Rb4 {[%emt 0:00:46]} Ke6 {[%emt 0:00:08]} 63. Kc5 {[%emt 0:00:11]} Bd3 {[%emt 0:02:10]} 64. Rb6+ {[%emt 0:00:08]} 1-0

[Event "Kragero Resort International 2022"]
[Site "Kragero"]
[Date "2022.02.25"]
[Round "6.5"]
[White "Romanov, Evgeny"]
[Black "Seo, Jung Min"]
[Result "1/2-1/2"]
[ECO "A00"]
[WhiteElo "2561"]
[BlackElo "2466"]
[Annotator "ChessBase"]
[PlyCount "145"]
[EventDate "2022.02.23"]
[EventType "swiss"]
[EventCountry "NOR"]
[SourceTitle "playchess.com"]
[Source "ChessBase"]
[SourceQuality "1"]
[TimeControl "5400+30"]

1. g3 {[%emt 0:09:16]} d5 {[%emt 0:01:44]} 2. Bg2 {[%emt 0:00:09]} Nf6 {[%emt 0:00:45]} 3. d3 {[%emt 0:00:17]} e5 {[%emt 0:02:21]} 4. Nf3 {[%emt 0:00:12]} Bd6 {[%emt 0:03:40]} 5. c4 {[%emt 0:01:15]} dxc4 {[%emt 0:07:33]} 6. Qa4+ {[%emt 0:00:50]} c6 {[%emt 0:02:48]} 7. Qxc4 {[%emt 0:00:09]} O-O {[%emt 0:00:44]} 8. O-O {[%emt 0:00:19]} Qe7 {[%emt 0:02:25]} 9. Nc3 {[%emt 0:04:06]} Be6 {[%emt 0:03:43]} 10. Qa4 {[%emt 0:03:14]} Nbd7 {[%emt 0:01:46]} 11. Ng5 {[%emt 0:03:15]} Bf5 {[%emt 0:05:00]} 12. Qc2 {[%emt 0:00:49]} h6 {[%emt 0:10:30]} 13. Nge4 {[%emt 0:00:50]} Nxe4 {[%emt 0:00:13]} 14. Nxe4 {[%emt 0:00:22]} Bxe4 {[%emt 0:08:05]} 15. Bxe4 {[%emt 0:02:19]} a5 {[%emt 0:00:41]} 16. Bg2 {[%emt 0:01:22]} Rfe8 {[%emt 0:01:12]} 17. Bd2 {[%emt 0:00:43]} Bb4 {[%emt 0:00:59]} 18. Bc3 {[%emt 0:00:24]} Nf6 {[%emt 0:05:10]} 19. e3 {[%emt 0:06:14]} a4 {[%emt 0:15:29]} 20. a3 {[%emt 0:01:09]} Ba5 {[%emt 0:00:33]} 21. Rfc1 {[%emt 0:01:23]} Red8 {[%emt 0:00:53]} 22. d4 {[%emt 0:04:22]} Bc7 {[%emt 0:00:54]} 23. b3 {[%emt 0:04:12]} axb3 {[%emt 0:03:17]} 24. Qxb3 {[%emt 0:00:19]} Rab8 {[%emt 0:01:18]} 25. a4 {[%emt 0:03:44]} Nd5 {[%emt 0:02:35]} 26. Bb2 {[%emt 0:01:37]} exd4 {[%emt 0:00:22]} 27. Bxd4 {[%emt 0:00:33]} Be5 {[%emt 0:00:35]} 28. Bxe5 {[%emt 0:11:30]} Qxe5 {[%emt 0:00:06]} 29. Rab1 {[%emt 0:00:06]} g6 {[%emt 0:02:29]} 30. a5 {[%emt 0:07:22]} Nf6 {[%emt 0:01:01]} 31. Qb4 {[%emt 0:00:53]} Kg7 {[%emt 0:00:44]} 32. Rc5 {[%emt 0:01:55]} Qe7 {[%emt 0:01:37]} 33. Rb5 {[%emt 0:04:52]} Qxb4 {[%emt 0:02:39]} 34. R5xb4 {[%emt 0:00:15]} Ra8 {[%emt 0:00:05]} 35. Rxb7 {[%emt 0:00:33]} Rxa5 {[%emt 0:00:03]} 36. Bxc6 {[%emt 0:00:22]} Rc8 {[%emt 0:00:45]} 37. Bf3 {[%emt 0:01:36]} Rac5 {[%emt 0:00:13]} 38. Kg2 {[%emt 0:01:56]} h5 {[%emt 0:01:03]} 39. Ra7 {[%emt 0:01:43]} R8c7 {[%emt 0:00:13]} 40. Rbb7 {[%emt 0:01:53]} Rxb7 {[%emt 0:00:04]} 41. Rxb7 {[%emt 0:00:05]} Kf8 {[%emt 0:03:28]} 42. Bd1 {[%emt 0:01:38]} Ne4 {[%emt 0:04:46]} 43. Bb3 {[%emt 0:00:59]} Nd6 {[%emt 0:01:17]} 44. Rd7 {[%emt 0:01:32]} Rb5 {[%emt 0:00:16]} 45. Bc2 {[%emt 0:00:33]} Rb6 {[%emt 0:00:55]} 46. e4 {[%emt 0:02:01]} Nc4 {[%emt 0:01:11]} 47. Rc7 {[%emt 0:01:20]} Ne5 {[%emt 0:00:25]} 48. h3 {[%emt 0:04:15]} Rb2 {[%emt 0:00:21]} 49. Rc3 {[%emt 0:02:40]} Kg7 {[%emt 0:03:05]} 50. f4 {[%emt 0:03:31]} Nd3 {[%emt 0:00:15]} 51. Kf1 {[%emt 0:00:41]} Nb4 {[%emt 0:00:05]} 52. Bb3 {[%emt 0:00:08]} Na2 {[%emt 0:00:19]} 53. Re3 {[%emt 0:01:21]} Nb4 {[%emt 0:00:06]} 54. e5 {[%emt 0:00:55]} Nc2 {[%emt 0:02:07]} 55. Rd3 {[%emt 0:01:26]} Nb4 {[%emt 0:00:08]} 56. Rc3 {[%emt 0:00:16]} Na2 {[%emt 0:00:09]} 57. Re3 {[%emt 0:00:07]} Nb4 {[%emt 0:00:07]} 58. g4 {[%emt 0:02:18]} hxg4 {[%emt 0:00:06]} 59. hxg4 {[%emt 0:00:03]} Nc6 {[%emt 0:01:03]} 60. Bd5 {[%emt 0:01:39]} Nd4 {[%emt 0:00:57]} 61. Rd3 {[%emt 0:01:46]} Ne6 {[%emt 0:01:24]} 62. f5 {[%emt 0:01:37]} Nf4 {[%emt 0:00:56]} 63. f6+ {[%emt 0:01:15]} Kh6 {[%emt 0:01:11]} 64. Rd4 {[%emt 0:00:06]} Nxd5 {[%emt 0:00:03]} 65. Rxd5 {[%emt 0:00:08]} Kg5 {[%emt 0:00:35]} 66. Rd4 {[%emt 0:01:38]} Rc2 {[%emt 0:01:07]} 67. Ke1 {[%emt 0:00:29]} Ra2 {[%emt 0:00:37]} 68. Re4 {[%emt 0:00:51]} Rb2 {[%emt 0:00:39]} 69. Kf1 {[%emt 0:00:37]} Ra2 {[%emt 0:00:09]} 70. Ke1 {[%emt 0:00:24]} Rb2 {[%emt 0:00:05]} 71. Ra4 {[%emt 0:00:09]} Rb5 {[%emt 0:00:14]} 72. Re4 {[%emt 0:00:08]} Rb2 {[%emt 0:00:08]} 73. Kf1 {[%emt 0:01:14]} 1/2-1/2

[Event "Kragero Resort International 2022"]
[Site "Kragero"]
[Date "2022.02.25"]
[Round "6.5"]
[White "Stromhaug, Kristoffer Wang"]
[Black "Bjarnason, Snorri Vikanes"]
[Result "1-0"]
[ECO "C59"]
[WhiteElo "1694"]
[BlackElo "1606"]
[Annotator "NA"]
[PlyCount "115"]
[EventDate "2022.02.23"]
[EventType "swiss"]
[EventCountry "NOR"]
[SourceTitle "playchess.com"]
[Source "ChessBase"]
[SourceQuality "1"]
[TimeControl "5400+30"]

1. e4 {[%emt 0:00:02]} e5 {[%emt 0:03:46]} 2. Nf3 {[%emt 0:00:14]} Nc6 {[%emt 0:00:18]} 3. Bc4 {[%emt 0:00:14]} Nf6 {[%emt 0:00:10]} 4. Ng5 {[%emt 0:02:18]} d5 {[%emt 0:00:15]} 5. exd5 {[%emt 0:00:07]} Na5 {[%emt 0:00:06]} 6. Bb5+ {[%emt 0:00:12]} c6 {[%emt 0:00:07]} 7. dxc6 {[%emt 0:00:13]} bxc6 {[%emt 0:00:07]} 8. Be2 {[%emt 0:00:07]} h6 {[%emt 0:00:58]} 9. Nf3 {[%emt 0:00:05]} e4 {[%emt 0:02:27]} 10. Ne5 {[%emt 0:00:06]} Qd5 {[%emt 0:00:18]} 11. d4 {[%emt 0:04:49]} exd3 {[%emt 0:04:02]} 12. Nxd3 {[%emt 0:00:08]} Bd6 {[%emt 0:04:04]} 13. Bf3 {[%emt 0:03:21]} Qe6+ {[%emt 0:01:55]} 14. Qe2 {[%emt 0:01:13]} Nd5 {[%emt 0:01:54]} 15. Bxd5 {[%emt 0:03:45]} cxd5 {[%emt 0:00:10]} 16. Qxe6+ {[%emt 0:00:22]} Bxe6 {[%emt 0:00:52]} 17. O-O {[%emt 0:01:57]} Rc8 {[%emt 0:05:05]} 18. c3 {[%emt 0:01:46]} g5 {[%emt 0:01:41]} 19. Be3 {[%emt 0:02:22]} Bf5 {[%emt 0:01:24]} 20. Rd1 {[%emt 0:05:46]} a6 {[%emt 0:01:03]} 21. Bd4 {[%emt 0:01:45]} Rg8 {[%emt 0:01:01]} 22. b4 {[%emt 0:04:27]} Nc4 {[%emt 0:00:27]} 23. Nc5 {[%emt 0:00:48]} Rc6 {[%emt 0:06:16]} 24. Nd2 {[%emt 0:05:39]} Na3 {[%emt 0:00:43]} 25. Ndb3 {[%emt 0:02:24]} Nc2 {[%emt 0:00:25]} 26. Rac1 {[%emt 0:00:35]} Bf4 {[%emt 0:00:13]} 27. Nd2 {[%emt 0:01:23]} Bg4 {[%emt 0:04:32]} 28. f3 {[%emt 0:01:46]} Nxd4 {[%emt 0:00:18]} 29. cxd4 {[%emt 0:00:18]} Bf5 {[%emt 0:00:27]} 30. Kf2 {[%emt 0:02:02]} Kd8 {[%emt 0:07:48]} 31. g3 {[%emt 0:01:58]} Bc7 {[%emt 0:03:21]} 32. Nb1 {[%emt 0:04:19]} Bc8 {[%emt 0:04:16]} 33. Nc3 {[%emt 0:01:35]} Rd6 {[%emt 0:00:10]} 34. Re1 {[%emt 0:01:04]} Re8 {[%emt 0:05:12]} 35. Rxe8+ {[%emt 0:03:17]} Kxe8 {[%emt 0:00:07]} 36. a4 {[%emt 0:00:52]} Bb6 {[%emt 0:04:04]} 37. b5 {[%emt 0:03:17]} f6 {[%emt 0:02:24]} 38. Nb3 {[%emt 0:01:59]} a5 {[%emt 0:00:58]} 39. Nxd5 {[%emt 0:11:32]} Be6 {[%emt 0:00:17]} 40. Nxb6 {[%emt 0:01:02]} Bxb3 {[%emt 0:00:17]} 41. Rc6 {[%emt 0:11:12]} Rxd4 {[%emt 0:00:11]} 42. Rxf6 {[%emt 0:00:07]} Bxa4 {[%emt 0:00:15]} 43. Ke3 {[%emt 0:01:23]} Rb4 {[%emt 0:00:27]} 44. Nxa4 {[%emt 0:00:17]} Rxa4 {[%emt 0:00:08]} 45. Rxh6 {[%emt 0:00:33]} Rb4 {[%emt 0:00:11]} 46. b6 {[%emt 0:01:12]} a4 {[%emt 0:05:05]} 47. b7 {[%emt 0:01:19]} Rxb7 {[%emt 0:05:45]} 48. Rh8+ {[%emt 0:00:32]} Kd7 {[%emt 0:00:18]} 49. Rh7+ {[%emt 0:00:14]} Kc6 {[%emt 0:00:06]} 50. Rxb7 {[%emt 0:00:04]} Kxb7 {[%emt 0:00:10]} 51. Kd2 {[%emt 0:00:08]} Kc6 {[%emt 0:00:29]} 52. Kc3 {[%emt 0:00:11]} Kc5 {[%emt 0:00:20]} 53. h4 {[%emt 0:00:12]} gxh4 {[%emt 0:00:16]} 54. gxh4 {[%emt 0:00:06]} Kd5 {[%emt 0:00:24]} 55. Kb4 {[%emt 0:00:09]} Ke5 {[%emt 0:00:38]} 56. Kxa4 {[%emt 0:00:11]} Kf5 {[%emt 0:00:17]} 57. Kb4 {[%emt 0:00:08]} Kg6 {[%emt 0:00:17]} 58. f4 {[%emt 0:00:12]} 1-0